bitfinex-derivatives/quotes_BTCF0:USTF0_20250106
["timestamp","ask_amount","ask_price","bid_price","bid_amount"]
[1736188633064,0.44916436,102030.0,102020.0,1.00888761]
[1736188633266,0.35671338,102030.0,102020.0,1.00888761]
[1736188633958,0.35671338,102030.0,102020.0,1.36968761]
[1736188634161,0.18116736,102030.0,102020.0,1.36968761]
[1736188634768,0.18116736,102030.0,102020.0,1.00888761]
[1736188634769,0.54196736,102030.0,102020.0,1.00888761]
[1736188635073,0.18116736,102030.0,102020.0,1.36968761]
[1736188635259,0.15036736,102030.0,102020.0,1.46213859]
[1736188635462,0.15036736,102030.0,102020.0,0.57683859]
[1736188635967,0.15036736,102030.0,102020.0,1.52683859]
[1736188636455,0.11209658,102030.0,102020.0,1.52683859]
[1736188636664,0.06742625,102030.0,102020.0,1.52683859]
[1736188637164,0.11743892,102040.0,102020.0,2.57375973]
[1736188637472,0.11743892,102040.0,102030.0,0.53284498]
[1736188638371,0.12143892,102040.0,102030.0,0.53284498]
[1736188638663,0.12143892,102040.0,102030.0,0.76553591]
[1736188639055,0.11743892,102040.0,102030.0,0.67308493]
[1736188639365,0.11943892,102040.0,102030.0,0.67408493]
[1736188639863,0.002,102040.0,102030.0,1.09400905]
[1736188641466,0.002,102040.0,102030.0,2.04400905]
[1736188641669,0.09445098,102040.0,102030.0,2.04400905]
[1736188641864,0.12575098,102040.0,102030.0,0.70260905]
[1736188642256,0.12575098,102040.0,102030.0,1.88532189]
[1736188642462,0.12575098,102040.0,102030.0,2.24612189]
[1736188642662,0.12575098,102040.0,102030.0,1.88532189]
[1736188642967,0.17473998,102040.0,102030.0,1.88532189]
[1736188643364,0.12575098,102040.0,102030.0,1.88532189]
[1736188643764,0.48655098,102040.0,102030.0,1.23270684]
[1736188645071,0.6039899,102040.0,102030.0,1.23270684]
[1736188645371,0.6529809,102040.0,102030.0,1.23270684]
[1736188645873,0.6039899,102040.0,102030.0,1.23270684]
[1736188646465,0.6039899,102040.0,102030.0,0.999994]
[1736188647763,0.48023892,102040.0,102030.0,0.999994]
[1736188647972,0.11943892,102040.0,102030.0,1.48604498]
[1736188648172,0.11943892,102040.0,102030.0,1.51774498]
[1736188648561,0.11943892,102040.0,102030.0,0.56774498]
[1736188648765,0.11943892,102040.0,102030.0,0.80045782]
[1736188648965,0.11943892,102040.0,102030.0,1.75045782]
[1736188649669,0.11943892,102040.0,102030.0,1.65800684]
[1736188650064,0.002,102040.0,102030.0,2.31159576]
[1736188650674,0.002,102040.0,102030.0,2.40404674]
[1736188650872,0.002,102040.0,102030.0,2.31159576]
[1736188651073,0.002,102040.0,102030.0,1.91909576]
[1736188651268,0.12635098,102040.0,102030.0,1.91909576]
[1736188651470,0.48715098,102040.0,102030.0,1.88629576]
[1736188651673,0.53614098,102040.0,102030.0,1.65358292]
[1736188651874,0.53614098,102040.0,102030.0,0.65458892]
[1736188652380,0.53614098,102040.0,102030.0,1.60458892]
[1736188652577,0.17534098,102040.0,102030.0,1.60458892]
[1736188652880,0.17534098,102040.0,102030.0,0.951]
[1736188652881,0.53614098,102040.0,102030.0,0.951]
[1736188653272,0.53614098,102040.0,102030.0,0.999994]
[1736188653577,0.48715098,102040.0,102030.0,0.999994]
[1736188654170,0.60453245,102040.0,102030.0,0.999994]
[1736188656877,0.65352245,102040.0,102030.0,0.999994]
[1736188658071,0.53614098,102040.0,102030.0,0.999994]
[1736188661578,0.53614098,102040.0,102030.0,0.049994]
[1736188663478,0.65352542,102040.0,102030.0,0.22466576]
[1736188667780,0.56107444,102040.0,102030.0,0.22466576]
[1736188667978,0.65352542,102040.0,102030.0,1.17466576]
[1736188668180,0.80028732,102040.0,102030.0,1.17466576]
[1736188669385,0.80028732,102040.0,102030.0,1.40760742]
[1736188669585,0.65884634,102040.0,102030.0,1.40760742]
[1736188669785,0.26614634,102040.0,102030.0,1.5000584]
[1736188670581,0.11938444,102040.0,102030.0,1.8608584]
[1736188671982,0.11938444,102040.0,102030.0,2.33941538]
[1736188672979,0.11938444,102040.0,102030.0,1.38941538]
[1736188673492,0.21183542,102040.0,102030.0,1.8861644]
[1736188673676,0.57263542,102040.0,102030.0,1.8861644]
[1736188673880,0.21183542,102040.0,102030.0,2.2469644]
[1736188674180,0.21183542,102040.0,102030.0,0.9361644]
[1736188674579,0.21183542,102040.0,102030.0,1.40777858]
[1736188675878,0.21183542,102040.0,102030.0,1.23293566]
[1736188676685,0.21183542,102040.0,102030.0,1.59373566]
[1736188676982,0.11938444,102040.0,102030.0,1.68618664]
[1736188677677,0.002,102040.0,102030.0,2.10691468]
[1736188679690,0.002,102040.0,102030.0,1.15691468]
[1736188679882,0.002,102040.0,102030.0,1.50601015]
[1736188680082,0.14898444,102050.0,102030.0,2.50500415]
[1736188680283,0.14898444,102050.0,102040.0,0.048989]
[1736188681879,0.11938444,102050.0,102040.0,0.079389]
[1736188682083,0.11938444,102050.0,102040.0,0.48699477]
[1736188683590,0.11738444,102050.0,102040.0,0.48699477]
[1736188683791,0.48218444,102050.0,102040.0,0.48699477]
[1736188684583,0.12138444,102050.0,102040.0,0.57944575]
[1736188685079,0.12138444,102050.0,102040.0,0.64254575]
[1736188685278,0.26814634,102050.0,102040.0,0.40962817]
[1736188685686,0.26814634,102050.0,102040.0,1.35962817]
[1736188686794,0.12138444,102050.0,102040.0,1.59254575]
[1736188687185,0.12138444,102050.0,102040.0,1.95334575]
[1736188688997,0.12138444,102050.0,102040.0,1.96301544]
[1736188689596,0.004,102050.0,102040.0,1.96301544]
[1736188691005,0.004,102050.0,102040.0,2.07924014]
[1736188691395,0.09645098,102050.0,102040.0,0.61288916]
[1736188691601,0.0354,102050.0,102040.0,0.61288916]
[1736188691999,0.0354,102050.0,102040.0,1.56288916]
[1736188692300,0.0354,102050.0,102040.0,1.27197627]
[1736188693199,0.0354,102050.0,102040.0,1.44657387]
[1736188693794,0.0354,102050.0,102040.0,1.80737387]
[1736188694197,0.0354,102050.0,102040.0,1.89982485]
[1736188694697,0.004,102050.0,102040.0,1.72522725]
[1736188694998,0.004,102050.0,102040.0,1.78962725]
[1736188695787,0.004,102050.0,102040.0,1.72522725]
[1736188696194,0.004,102050.0,102040.0,2.14339601]
[1736188696592,0.004,102050.0,102040.0,2.14439601]
[1736188696792,0.51058444,102060.0,102050.0,0.048984]
[1736188697998,0.51458444,102060.0,102050.0,0.45660167]
[1736188698396,0.51458444,102060.0,102050.0,0.54905265]
[1736188698793,0.51458444,102060.0,102050.0,1.49905265]
[1736188700704,0.51458444,102060.0,102050.0,1.61527225]
[1736188701106,0.51458444,102060.0,102050.0,1.52282127]
[1736188702000,0.15378444,102060.0,102050.0,1.23190838]
[1736188702204,0.15378444,102060.0,102050.0,1.32435936]
[1736188702406,0.15378444,102060.0,102050.0,1.68515936]
[1736188702407,0.12138444,102060.0,102050.0,1.68515936]
[1736188702909,0.21383542,102060.0,102050.0,1.23190838]
[1736188703205,0.15138444,102060.0,102050.0,1.23190838]
[1736188703800,0.15138444,102060.0,102050.0,1.52282127]
[1736188704106,0.51218444,102060.0,102050.0,1.52282127]
[1736188704506,0.54448444,102060.0,102050.0,1.52282127]
[1736188704902,0.68591442,102060.0,102050.0,1.52282127]
[1736188705107,0.68591442,102060.0,102050.0,1.4067379]
[1736188705809,0.63693542,102060.0,102050.0,1.4067379]
[1736188706308,0.54448444,102060.0,102050.0,1.4067379]
[1736188707511,0.18368444,102060.0,102050.0,1.4067379]
[1736188707709,0.18368444,102060.0,102050.0,1.49918888]
[1736188707914,0.33044634,102060.0,102050.0,1.4067379]
[1736188711313,0.2130619,102060.0,102050.0,1.49918888]
[1736188713207,0.1807619,102060.0,102050.0,0.54918888]
[1736188713409,0.1507619,102060.0,102050.0,0.90998888]
[1736188713612,0.1507619,102060.0,102050.0,0.94278888]
[1736188713915,0.1507619,102060.0,102050.0,1.89278888]
[1736188715021,0.12144793,102060.0,102050.0,2.13472201]
[1736188715813,0.12144793,102060.0,102050.0,1.77392201]
[1736188716018,0.004,102060.0,102050.0,2.48381748]
[1736188717210,0.004,102060.0,102050.0,2.91175591]
[1736188718608,0.004,102060.0,102050.0,2.62084302]
[1736188720019,0.004,102060.0,102050.0,2.62184302]
[1736188720317,0.002,102060.0,102050.0,2.67082702]
[1736188721311,0.002,102060.0,102050.0,2.24288859]
[1736188721909,0.65687977,102080.0,102050.0,2.28635557]
[1736188722109,0.65687977,102080.0,102070.0,0.14142598]
[1736188722407,0.26567977,102080.0,102070.0,0.50222598]
[1736188722614,0.26567977,102080.0,102070.0,1.45222598]
[1736188722810,0.23680983,102080.0,102070.0,1.48522598]
[1736188723115,0.18160038,102080.0,102070.0,1.48522598]
[1736188723314,0.04465338,102080.0,102070.0,1.48522598]
[1736188723818,0.002,102080.0,102070.0,1.89254314]
[1736188724319,0.07315338,102090.0,102080.0,0.04897]
[1736188724516,0.07315338,102090.0,102080.0,0.50222098]
[1736188725220,0.0305,102090.0,102080.0,0.50222098]
[1736188726517,0.0375,102090.0,102080.0,0.50422098]
[1736188726714,0.0375,102090.0,102080.0,0.67856226]
[1736188726915,0.007,102090.0,102080.0,0.67856226]
[1736188727120,0.007,102090.0,102080.0,0.70986226]
[1736188727310,0.007,102090.0,102080.0,0.70886226]
[1736188728414,0.005,102090.0,102080.0,0.70786226]
[1736188728820,0.005,102090.0,102080.0,0.34706226]
[1736188730424,0.005,102090.0,102080.0,0.31576226]
[1736188731026,0.005,102090.0,102080.0,0.54851492]
[1736188731721,0.0362,102090.0,102080.0,0.54851492]
[1736188732420,0.0362,102090.0,102080.0,0.31576226]
[1736188732825,0.005,102090.0,102080.0,0.31576226]
[1736188733430,0.005,102090.0,102080.0,1.26576226]
[1736188735226,0.003,102090.0,102080.0,1.31473226]
[1736188735828,0.003,102090.0,102080.0,1.22228128]
[1736188738431,0.003,102090.0,102080.0,0.27228128]
[1736188738922,0.003,102090.0,102080.0,1.22228128]
[1736188739124,0.003,102090.0,102080.0,1.45503394]
[1736188740433,0.45625098,102090.0,102080.0,1.45503394]
[1736188740631,0.3638,102090.0,102080.0,1.45503394]
[1736188741034,0.003,102090.0,102080.0,1.54748492]
[1736188741332,0.003,102090.0,102080.0,1.45503394]
[1736188741732,0.003,102090.0,102080.0,1.22228128]
[1736188742125,0.3638,102090.0,102080.0,1.22228128]
[1736188742332,0.50521598,102090.0,102080.0,0.17434128]
[1736188743035,0.50521598,102090.0,102080.0,1.12434128]
[1736188743237,0.50521598,102090.0,102080.0,0.99897]
[1736188744332,0.50521598,102090.0,102080.0,0.04897]
[1736188745331,0.59766696,102090.0,102080.0,0.04897]
[1736188745729,0.77321298,102090.0,102080.0,0.04897]
[1736188745932,0.680762,102090.0,102080.0,0.04897]
[1736188746533,0.77321298,102090.0,102080.0,0.04897]
[1736188746730,0.680762,102090.0,102080.0,0.04897]
[1736188747332,0.77321298,102090.0,102080.0,0.04897]
[1736188748747,0.78292744,102090.0,102080.0,0.04897]
[1736188750338,0.04897,102080.0,102070.0,1.00860316]
[1736188750538,0.59712098,102080.0,102070.0,1.00860316]
[1736188751543,0.59912098,102080.0,102070.0,1.00860316]
[1736188751746,0.44207,102080.0,102070.0,1.10205414]
[1736188751940,0.44207,102080.0,102070.0,0.05960316]
[1736188752146,0.53452098,102080.0,102070.0,0.05960316]
[1736188752544,0.53452098,102080.0,102070.0,1.00960316]
[1736188753245,0.53452098,102080.0,102070.0,1.00860316]
[1736188753546,0.53552098,102080.0,102070.0,1.18294444]
[1736188759047,0.50522098,102080.0,102070.0,1.18294444]
[1736188759951,0.65171966,102080.0,102070.0,1.00860316]
[1736188761055,0.50522098,102080.0,102070.0,1.18294444]
[1736188761353,0.41277,102080.0,102070.0,1.18294444]
[1736188761752,0.3638,102080.0,102070.0,1.27539542]
[1736188762458,0.3638,102080.0,102070.0,1.10105414]
[1736188762666,0.003,102080.0,102070.0,1.46185414]
[1736188763654,0.003,102080.0,102070.0,1.86894808]
[1736188764351,0.003,102080.0,102070.0,1.50814808]
[1736188764552,0.003,102080.0,102070.0,1.86894808]
[1736188764754,0.003,102080.0,102070.0,1.98554763]
[1736188766359,0.003,102080.0,102070.0,1.6946068]
[1736188766558,0.003,102080.0,102070.0,1.3338068]
[1736188766857,0.003,102080.0,102070.0,1.6946068]
[1736188767953,0.003,102080.0,102070.0,2.25489342]
[1736188768156,0.45625098,102080.0,102070.0,1.66134076]
[1736188768351,0.45192376,102080.0,102070.0,1.66134076]
[1736188768554,0.409771,102080.0,102070.0,1.66134076]
[1736188769359,0.53341898,102090.0,102070.0,1.71031376]
[1736188770059,0.67991766,102090.0,102080.0,0.17486157]
[1736188770655,0.68291766,102090.0,102080.0,0.17486157]
[1736188771350,0.68491766,102090.0,102080.0,0.17486157]
[1736188771551,0.53841898,102090.0,102080.0,0.17486157]
[1736188771958,0.53841898,102090.0,102080.0,0.22383257]
[1736188774252,0.53841898,102090.0,102080.0,0.45698133]
[1736188776563,0.053968,102090.0,102080.0,0.45698133]
[1736188776758,0.053968,102090.0,102080.0,0.48748133]
[1736188777060,0.053968,102090.0,102080.0,1.43748133]
[1736188778164,0.005,102090.0,102080.0,1.43748133]
[1736188778363,0.005,102090.0,102080.0,1.52993231]
[1736188778659,0.005,102090.0,102080.0,1.59293231]
[1736188779260,0.005,102090.0,102080.0,1.95373231]
[1736188779458,0.005,102090.0,102080.0,1.77887074]
[1736188780569,0.005,102090.0,102080.0,2.19733608]
[1736188781164,0.55325098,102100.0,102090.0,0.048966]
[1736188782469,0.4608,102100.0,102090.0,0.048966]
[1736188782767,0.55825098,102100.0,102090.0,0.048966]
[1736188783170,0.55825098,102100.0,102090.0,0.998966]
[1736188783367,0.55825098,102100.0,102090.0,1.4069372]
[1736188785073,0.67553947,102100.0,102090.0,1.4069372]
[1736188785367,0.72450047,102100.0,102090.0,0.4569372]
[1736188785772,0.72450047,102100.0,102090.0,1.4069372]
[1736188786166,0.72450047,102100.0,102090.0,1.1738108]
[1736188786975,0.75297469,102100.0,102090.0,1.1738108]
[1736188787979,0.75297469,102100.0,102090.0,1.18380637]
[1736188788276,0.69251209,102100.0,102090.0,1.18380637]
[1736188788669,0.69251209,102100.0,102090.0,1.41693277]
[1736188791376,0.75297469,102100.0,102090.0,1.41693277]
[1736188791783,0.75297469,102100.0,102090.0,1.36796677]
[1736188791985,0.78457469,102100.0,102090.0,1.36796677]
[1736188792783,0.93107337,102100.0,102090.0,1.36796677]
[1736188792983,0.93107337,102100.0,102090.0,1.41693277]
[1736188793982,0.81378488,102100.0,102090.0,1.36796677]
[1736188794288,0.61229868,102100.0,102090.0,1.4069372]
[1736188794481,0.78218488,102100.0,102090.0,1.4069372]
[1736188794883,0.78218488,102100.0,102090.0,0.4569372]
[1736188795084,0.81248488,102100.0,102090.0,0.4569372]
[1736188795386,0.81248488,102100.0,102090.0,1.1738108]
[1736188796192,0.81248488,102100.0,102090.0,1.18380145]
[1736188796388,0.81248488,102100.0,102090.0,1.41692785]
[1736188797493,0.84153222,102100.0,102090.0,1.18380145]
[1736188798687,0.78106962,102100.0,102090.0,1.18380145]
[1736188799891,0.84153222,102100.0,102090.0,1.18380145]
[1736188801394,0.84153222,102100.0,102090.0,0.23380145]
[1736188801896,0.84153222,102100.0,102090.0,1.18380145]
[1736188802094,0.84153222,102100.0,102090.0,0.05895665]
[1736188802389,0.048965,102090.0,102080.0,0.4079712]
[1736188802591,0.5609902,102090.0,102080.0,1.3579712]
[1736188802895,0.5914902,102090.0,102080.0,1.4069412]
[1736188803090,0.5310276,102090.0,102080.0,1.4069412]
[1736188803296,0.70657362,102090.0,102080.0,0.99897]
[1736188803590,0.77003622,102090.0,102080.0,0.99897]
[1736188803990,0.77003622,102090.0,102070.0,0.4569422]
[1736188804186,0.5621952,102080.0,102070.0,0.4569422]
[1736188804813,0.5017326,102080.0,102070.0,0.4569422]
[1736188805017,0.4702326,102080.0,102070.0,0.46679603]
[1736188805212,0.4702326,102080.0,102070.0,0.23366963]
[1736188806303,0.4702326,102080.0,102070.0,0.23466963]
[1736188806502,0.7342503,102080.0,102070.0,0.23466963]
[1736188806990,0.7352503,102080.0,102070.0,0.23466963]
[1736188807697,0.7957129,102080.0,102070.0,0.23466963]
[1736188808099,0.6490364,102080.0,102070.0,0.23466963]
[1736188808393,0.5885738,102080.0,102070.0,0.23466963]
[1736188809289,0.5885738,102080.0,102070.0,0.26686963]
[1736188809600,0.5885738,102080.0,102070.0,0.32733223]
[1736188809793,0.5885738,102080.0,102070.0,0.26686963]
[1736188809989,0.5885738,102080.0,102070.0,1.21686963]
[1736188810186,0.5885738,102080.0,102070.0,0.23466963]
[1736188810387,0.5885738,102080.0,102070.0,0.29513223]
[1736188810593,0.5885738,102080.0,102070.0,0.23466963]
[1736188810790,0.5885738,102080.0,102070.0,1.18466963]
[1736188811495,0.4791412,102080.0,102070.0,1.24513223]
[1736188811800,0.4791412,102080.0,102070.0,1.27783223]
[1736188812096,0.1183412,102080.0,102070.0,1.63863223]
[1736188813499,0.001,102080.0,102070.0,1.69691383]
[1736188814301,0.001,102080.0,102070.0,1.69591383]
[1736188814499,0.001,102080.0,102070.0,2.34787365]
[1736188814695,0.1094286,102090.0,102070.0,2.34787365]
[1736188814901,0.8342443,102100.0,102080.0,0.1584046]
[1736188815102,0.7737817,102100.0,102090.0,0.048966]
[1736188815292,0.7737817,102100.0,102090.0,0.079166]
[1736188815693,0.6564405,102100.0,102090.0,0.079166]
[1736188816191,0.6564405,102100.0,102090.0,1.029166]
[1736188817395,0.74856805,102100.0,102090.0,1.029166]
[1736188818190,0.75156805,102100.0,102090.0,0.998966]
[1736188818398,0.75156805,102100.0,102090.0,0.95]
[1736188818604,0.78226805,102100.0,102090.0,0.95]
[1736188818800,0.048966,102090.0,102080.0,0.45678003]
[1736188819104,0.6561211,102090.0,102080.0,0.40781103]
[1736188819300,0.56399355,102090.0,102080.0,0.40781103]
[1736188820006,0.048971,102080.0,102070.0,1.44813586]
[1736188820302,0.409771,102080.0,102070.0,1.44813586]
[1736188820500,0.409771,102080.0,102070.0,0.45678203]
[1736188820804,0.53299855,102080.0,102070.0,0.40781103]
[1736188821113,0.53299855,102080.0,102070.0,0.41281103]
[1736188821910,0.53299855,102080.0,102070.0,0.18068463]
[1736188822906,0.67967505,102080.0,102070.0,0.006]
[1736188823507,0.67967505,102080.0,102070.0,0.002]
[1736188824800,0.68067505,102080.0,102070.0,0.001]
[1736188829914,0.85622107,102080.0,102070.0,0.001]
[1736188832105,0.68067505,102080.0,102070.0,0.001]
[1736188832302,0.64957505,102080.0,102070.0,0.049974]
[1736188834304,0.5574475,102080.0,102070.0,0.049974]
[1736188834905,0.5084765,102080.0,102070.0,0.17220155]
[1736188835503,0.5084765,102080.0,102070.0,1.12220155]
[1736188835908,0.410769,102080.0,102070.0,1.29688618]
[1736188836105,0.410769,102080.0,102070.0,1.17465863]
[1736188836106,0.50289655,102080.0,102070.0,1.17465863]
[1736188836505,0.50289655,102080.0,102070.0,1.12568463]
[1736188837206,0.6200794,102080.0,102070.0,0.951]
[1736188839017,0.58843527,102080.0,102070.0,0.951]
[1736188840916,0.58843527,102080.0,102070.0,0.001]
[1736188841418,0.58843527,102080.0,102070.0,1.12568463]
[1736188841614,0.58843527,102080.0,102070.0,1.18616805]
[1736188841807,0.58843527,102080.0,102070.0,1.12568463]
[1736188843811,0.58843527,102080.0,102070.0,1.17465863]
[1736188848214,0.22763527,102080.0,102070.0,1.17465863]
[1736188848407,0.58843527,102080.0,102070.0,1.17465863]
[1736188849524,0.73511177,102080.0,102070.0,1.17465863]
[1736188850627,0.73511177,102080.0,102070.0,1.40778503]
[1736188851125,0.79559519,102080.0,102070.0,1.35881103]
[1736188851813,0.67841234,102080.0,102070.0,1.2331014]
[1736188852219,0.61792892,102080.0,102070.0,1.2331014]
[1736188854527,0.61792892,102080.0,102070.0,1.17486642]
[1736188855620,0.61792892,102080.0,102070.0,1.40799282]
[1736188857229,0.67841234,102080.0,102070.0,1.2331014]
[1736188858122,0.67841234,102080.0,102070.0,0.2831014]
[1736188859624,0.67841234,102080.0,102070.0,0.22503914]
[1736188860854,0.67841234,102080.0,102070.0,0.40919054]
[1736188861948,0.5574455,102080.0,102070.0,0.45816554]
[1736188862253,0.67841234,102080.0,102070.0,0.45816554]
[1736188862451,0.70728186,102080.0,102070.0,0.22503914]
[1736188863142,0.58631502,102080.0,102070.0,0.22503914]
[1736188863350,0.58631502,102080.0,102070.0,0.28552256]
[1736188863655,0.58631502,102080.0,102070.0,0.31792256]
[1736188863843,0.47125242,102080.0,102070.0,0.55104896]
[1736188864050,0.11045242,102080.0,102070.0,0.55104896]
[1736188864952,0.37481916,102080.0,102070.0,0.50129648]
[1736188865149,0.37481916,102080.0,102070.0,0.79223731]
[1736188866547,0.37481916,102080.0,102070.0,0.73175389]
[1736188867143,0.37481916,102080.0,102070.0,1.68175389]
[1736188867341,0.43530258,102080.0,102070.0,1.68175389]
[1736188867543,0.37481916,102080.0,102070.0,1.68175389]
[1736188868145,0.79610258,102080.0,102070.0,1.91525577]
[1736188869056,0.79610258,102080.0,102070.0,1.88285577]
[1736188869358,0.73561916,102080.0,102070.0,1.88285577]
[1736188869547,0.73561916,102080.0,102070.0,1.52441771]
[1736188870553,0.37481916,102080.0,102070.0,1.52441771]
[1736188870755,0.25732283,102080.0,102070.0,1.23347688]
[1736188871759,0.31780625,102080.0,102070.0,1.23347688]
[1736188871947,0.11045242,102080.0,102070.0,1.23347688]
[1736188872357,0.53173584,102080.0,102070.0,0.23450188]
[1736188873059,0.59221926,102080.0,102070.0,0.23450188]
[1736188873247,0.73908967,102080.0,102060.0,0.29094083]
[1736188873451,0.048979,102060.0,102050.0,1.29909547]
[1736188873651,0.53074584,102060.0,102050.0,0.34909547]
[1736188873854,0.53074584,102060.0,102050.0,0.35892906]
[1736188874256,0.53074584,102060.0,102050.0,1.30892906]
[1736188874456,0.53074584,102060.0,102050.0,0.35892906]
[1736188875053,0.76631793,102060.0,102050.0,0.1850114]
[1736188875259,0.76631793,102060.0,102050.0,0.1940114]
[1736188876453,0.76631793,102060.0,102050.0,0.1960114]
[1736188876860,0.64886864,102060.0,102050.0,0.1960114]
[1736188877458,0.74108787,102060.0,102050.0,0.1960114]
[1736188877662,0.74108787,102060.0,102050.0,0.18617781]
[1736188877962,0.74108787,102060.0,102050.0,0.011]
[1736188878861,0.048984,102050.0,102040.0,0.17517781]
[1736188879064,0.59770323,102050.0,102040.0,0.17517781]
[1736188879364,0.048994,102030.0,102020.0,1.78742172]
[1736188879565,0.50201323,102030.0,102020.0,1.78742172]
[1736188879764,0.53411323,102030.0,102020.0,1.029598]
[1736188880158,0.53411323,102030.0,102020.0,1.03918468]
[1736188881371,0.62197072,102030.0,102020.0,0.99018668]
[1736188881957,0.62297072,102030.0,102020.0,0.99618668]
[1736188882566,0.62397072,102030.0,102020.0,1.00518668]
[1736188884958,0.71618995,102030.0,102020.0,0.02458668]
[1736188885154,0.74908995,102030.0,102020.0,0.02458668]
[1736188885869,1.04897072,102030.0,102020.0,0.02458668]
[1736188886060,1.14118995,102030.0,102020.0,0.015]
[1736188886264,1.14018995,102030.0,102020.0,0.013]
[1736188886572,1.13918995,102030.0,102020.0,0.004]
[1736188886760,1.14018995,102030.0,102020.0,0.013]
[1736188887371,1.04797072,102030.0,102020.0,0.013]
[1736188889971,0.92445149,102030.0,102020.0,0.061999]
[1736188890667,1.01667072,102030.0,102020.0,0.061999]
[1736188891473,0.92881323,102030.0,102020.0,0.061999]
[1736188895862,0.56801323,102030.0,102020.0,0.061999]
[1736188896164,0.56801323,102030.0,102020.0,0.013]
[1736188896362,1.02103246,102030.0,102020.0,0.013]
[1736188896563,0.049004,102010.0,102000.0,0.142707]
[1736188896763,0.409804,102010.0,102000.0,0.142707]
[1736188898374,0.410804,102010.0,102000.0,0.151707]
[1736188898679,0.410804,102010.0,102000.0,0.16138256]
[1736188898977,0.051004,102010.0,102000.0,0.62040179]
[1736188900580,0.002,102010.0,102000.0,0.62040179]
[1736188901082,0.051004,102010.0,102000.0,0.62040179]
[1736188902386,0.051004,102010.0,102000.0,1.47818256]
[1736188903178,0.051004,102010.0,102000.0,1.11738256]
[1736188903372,0.002,102010.0,102000.0,1.20960179]
[1736188904476,0.002,102010.0,102000.0,0.25960179]
[1736188905080,0.002,102010.0,102000.0,1.20960179]
[1736188905979,0.002,102010.0,102000.0,1.57040179]
[1736188907389,0.002,102010.0,102000.0,2.19828898]
[1736188907590,0.20500082,102020.0,102010.0,0.049004]
[1736188907887,0.11300988,102030.0,102020.0,0.048999]
[1736188908086,0.17554602,102040.0,102020.0,0.65923746]
[1736188908280,0.17554602,102040.0,102030.0,0.59423246]
[1736188908681,0.4405974,102050.0,102030.0,1.37735246]
[1736188908889,0.4405974,102050.0,102040.0,0.50200823]
[1736188909279,0.17755006,102060.0,102050.0,0.048984]
[1736188909480,0.17755006,102060.0,102050.0,0.50200323]
[1736188910490,0.17755006,102060.0,102050.0,1.45200323]
[1736188910881,0.00147033,102060.0,102050.0,1.45200323]
[1736188911488,0.00347033,102060.0,102050.0,1.45200323]
[1736188912883,0.00347033,102060.0,102050.0,0.50200323]
[1736188913089,0.00347033,102060.0,102050.0,0.56470323]
[1736188913292,0.00347033,102060.0,102050.0,1.51470323]
[1736188913680,0.00347033,102060.0,102050.0,0.56470323]
[1736188914080,0.00347033,102060.0,102050.0,1.51470323]
[1736188914894,0.00347033,102060.0,102050.0,0.56470323]
[1736188915192,0.00347033,102060.0,102050.0,0.57455971]
[1736188915378,0.00347033,102060.0,102050.0,1.52455971]
[1736188916192,0.002,102060.0,102050.0,1.52455971]
[1736188917284,0.110975,102070.0,102060.0,0.04898]
[1736188918288,0.062,102070.0,102060.0,0.14119923]
[1736188918491,0.003,102070.0,102060.0,0.50199923]
[1736188918691,0.003,102070.0,102060.0,0.59421846]
[1736188918986,0.007,102070.0,102060.0,0.50199923]
[1736188919991,0.007,102070.0,102060.0,0.14119923]
[1736188920286,0.007,102070.0,102060.0,0.50199923]
[1736188920489,0.52151923,102070.0,102060.0,0.04898]
[1736188921392,0.04898,102060.0,102050.0,0.00985648]
[1736188921579,0.048984,102050.0,102040.0,0.34043089]
[1736188921778,0.20450323,102050.0,102040.0,0.34043089]
[1736188921982,0.20450323,102050.0,102040.0,0.048985]
[1736188922390,0.048989,102040.0,102030.0,0.00146995]
[1736188922584,0.53300823,102040.0,102030.0,0.00146995]
[1736188922785,0.048994,102030.0,102020.0,0.34044189]
[1736188922984,0.048994,102030.0,102020.0,0.3502471]
[1736188923582,0.0633,102050.0,102020.0,0.75427033]
[1736188923888,0.112287,102050.0,102040.0,0.048989]
[1736188924090,0.0633,102050.0,102040.0,0.50200823]
[1736188924296,0.0311,102050.0,102040.0,0.50200823]
[1736188924595,0.08078,102060.0,102050.0,0.048984]
[1736188924798,0.17299923,102060.0,102050.0,0.048984]
[1736188925198,0.17299923,102060.0,102050.0,0.409784]
[1736188925399,0.53279923,102060.0,102050.0,0.048984]
[1736188925594,0.048984,102050.0,102040.0,1.00879125]
[1736188925797,0.04899,102040.0,102030.0,0.048992]
[1736188925991,0.08049,102040.0,102030.0,0.048992]
[1736188926300,0.0315,102040.0,102030.0,1.359792]
[1736188926595,0.0315,102040.0,102030.0,1.45201123]
[1736188927299,0.001,102040.0,102030.0,1.45901123]
[1736188927497,0.001,102040.0,102030.0,1.52281123]
[1736188927893,0.001,102040.0,102030.0,1.53260693]
[1736188928199,0.001,102040.0,102030.0,1.50240693]
[1736188928500,0.001,102040.0,102030.0,1.47080693]
[1736188932400,0.001,102040.0,102030.0,1.3785877]
[1736188932599,0.12451923,102040.0,102030.0,1.3785877]
[1736188932799,0.53430823,102040.0,102030.0,0.0187957]
[1736188933796,0.53430823,102040.0,102030.0,0.0677897]
[1736188934802,0.53430823,102040.0,102030.0,0.009]
[1736188935698,0.53430823,102040.0,102030.0,0.057994]
[1736188943803,0.56660823,102040.0,102030.0,0.057994]
[1736188944606,0.56660823,102040.0,102030.0,0.009]
[1736188945307,0.048999,102020.0,102010.0,0.28165974]
[1736188945608,0.50201823,102020.0,102010.0,0.28165974]
[1736188945913,0.3608,102020.0,102010.0,0.28165974]
[1736188946424,0.3608,102020.0,102010.0,0.29065974]
[1736188946706,0.3608,102020.0,102010.0,0.38787897]
[1736188946707,0.002,102020.0,102010.0,0.38787897]
[1736188947612,0.002,102020.0,102010.0,0.29565974]
[1736188948009,0.002,102020.0,102010.0,0.30569746]
[1736188948512,0.14321823,102020.0,102010.0,0.30569746]
[1736188948702,0.17541823,102020.0,102010.0,0.30569746]
[1736188949103,0.083199,102020.0,102010.0,0.30569746]
[1736188949314,0.083199,102020.0,102010.0,0.39791669]
[1736188949613,0.002,102020.0,102010.0,0.39791669]
[1736188950006,0.002,102020.0,102010.0,0.75871669]
[1736188950204,0.002,102020.0,102010.0,0.52605795]
[1736188951306,0.002,102020.0,102010.0,0.43383872]
[1736188951704,0.002,102020.0,102010.0,0.75871669]
[1736188952606,0.002,102020.0,102010.0,1.70871669]
[1736188952802,0.45501923,102020.0,102010.0,0.25669646]
[1736188953012,0.59901823,102020.0,102010.0,0.89524684]